[Event "Late-Titled-Tuesday-Blitz-July-09-2024"]
[Site "Chess.com"]
[Date "2024.07.09"]
[Round "3"]
[White "GoltsevDmitry2000"]
[Black "Jospem"]
[Result "1-0"]
[WhiteElo "2772"]
[BlackElo "3104"]
[TimeControl "180+1"]
[EndTime "14:29:14 PDT"]
[Termination "GoltsevDmitry2000 won on time"]

1. e4 {[%clk 0:02:58.3]} 1... c5 {[%clk 0:03:00.5]} 2. Nf3 {[%clk 0:02:58.4]}
2... d6 {[%clk 0:03:01.2]} 3. d4 {[%clk 0:02:58.6]} 3... cxd4 {[%clk 0:03:02.1]}
4. Nxd4 {[%clk 0:02:58.8]} 4... a6 {[%clk 0:03:03]} 5. Nc3 {[%clk 0:02:59.1]}
5... e6 {[%clk 0:03:03]} 6. Be2 {[%clk 0:02:59.4]} 6... b5 {[%clk 0:03:03.3]} 7.
a3 {[%clk 0:02:59.2]} 7... Bb7 {[%clk 0:03:03.4]} 8. O-O {[%clk 0:02:59.6]} 8...
Nd7 {[%clk 0:03:03.8]} 9. Be3 {[%clk 0:02:58.5]} 9... Ngf6 {[%clk 0:03:04.3]}
10. f3 {[%clk 0:02:57.9]} 10... Be7 {[%clk 0:03:04.6]} 11. Qd2 {[%clk
0:02:57.5]} 11... O-O {[%clk 0:03:04.3]} 12. Rad1 {[%clk 0:02:56.8]} 12... Rc8
{[%clk 0:03:04.4]} 13. Nb3 {[%clk 0:02:53.5]} 13... Qc7 {[%clk 0:03:03]} 14.
Rfe1 {[%clk 0:02:52.9]} 14... d5 {[%clk 0:03:01.8]} 15. exd5 {[%clk 0:02:46.2]}
15... Nxd5 {[%clk 0:03:02.7]} 16. Nxd5 {[%clk 0:02:46.2]} 16... Bxd5 {[%clk
0:03:02.1]} 17. Bd3 {[%clk 0:02:39]} 17... Bd6 {[%clk 0:02:59.7]} 18. f4 {[%clk
0:02:39]} 18... Nf6 {[%clk 0:02:58.9]} 19. Nd4 {[%clk 0:02:33]} 19... Rfe8
{[%clk 0:02:52.7]} 20. c3 {[%clk 0:02:23.3]} 20... h5 {[%clk 0:02:51]} 21. h3
{[%clk 0:02:20.6]} 21... Qb7 {[%clk 0:02:30.4]} 22. Qf2 {[%clk 0:02:08.7]} 22...
Be4 {[%clk 0:02:22.1]} 23. Bxe4 {[%clk 0:02:06.2]} 23... Nxe4 {[%clk 0:02:21.1]}
24. Qf3 {[%clk 0:02:06.4]} 24... h4 {[%clk 0:02:02.9]} 25. Bf2 {[%clk 0:01:55]}
25... f5 {[%clk 0:01:59.4]} 26. Bxh4 {[%clk 0:01:53]} 26... Qf7 {[%clk
0:01:59.9]} 27. Bg5 {[%clk 0:01:36.9]} 27... Bc5 {[%clk 0:01:52.1]} 28. Kh2
{[%clk 0:01:32.9]} 28... g6 {[%clk 0:01:40.2]} 29. Rxe4 {[%clk 0:01:29.3]} 29...
fxe4 {[%clk 0:01:39.3]} 30. Qxe4 {[%clk 0:01:30.2]} 30... Bb6 {[%clk 0:01:15.1]}
31. Nc6 {[%clk 0:01:12.4]} 31... Rc7 {[%clk 0:00:56.1]} 32. Nd8 {[%clk
0:01:00.1]} 32... Qf5 {[%clk 0:00:51.3]} 33. Qxf5 {[%clk 0:00:49.6]} 33... gxf5
{[%clk 0:00:51.1]} 34. Rd6 {[%clk 0:00:49.4]} 34... Bc5 {[%clk 0:00:29.3]} 35.
Rxa6 {[%clk 0:00:44.1]} 35... e5 {[%clk 0:00:25.7]} 36. fxe5 {[%clk 0:00:41.6]}
36... Rxe5 {[%clk 0:00:26.6]} 37. Bf4 {[%clk 0:00:39.9]} 37... Rce7 {[%clk
0:00:25.5]} 38. Nc6 {[%clk 0:00:31.8]} 38... Re2 {[%clk 0:00:20]} 39. Nxe7+
{[%clk 0:00:31.2]} 39... Bxe7 {[%clk 0:00:20.9]} 40. b4 {[%clk 0:00:22.6]} 40...
Re4 {[%clk 0:00:18.4]} 41. Bd6 {[%clk 0:00:19.9]} 41... Bf6 {[%clk 0:00:17.7]}
42. Rb6 {[%clk 0:00:18]} 42... f4 {[%clk 0:00:13.1]} 43. Rxb5 {[%clk 0:00:17.7]}
43... Bh4 {[%clk 0:00:13.3]} 44. Bxf4 {[%clk 0:00:14]} 44... Rxf4 {[%clk
0:00:14.2]} 45. g3 {[%clk 0:00:14.6]} 45... Rf2+ {[%clk 0:00:14.8]} 46. Kg1
{[%clk 0:00:15.1]} 46... Rc2 {[%clk 0:00:11.9]} 47. gxh4 {[%clk 0:00:14.8]}
47... Rxc3 {[%clk 0:00:12.3]} 48. a4 {[%clk 0:00:14.9]} 48... Ra3 {[%clk
0:00:13]} 49. a5 {[%clk 0:00:15.2]} 49... Kf7 {[%clk 0:00:13.9]} 50. Rb6 {[%clk
0:00:15]} 50... Rxh3 {[%clk 0:00:13.4]} 51. a6 {[%clk 0:00:14.7]} 51... Ra3
{[%clk 0:00:14.3]} 52. h5 {[%clk 0:00:14.5]} 52... Kg7 {[%clk 0:00:13.9]} 53.
h6+ {[%clk 0:00:14.7]} 53... Kh7 {[%clk 0:00:14.8]} 54. b5 {[%clk 0:00:15]}
54... Rxa6 {[%clk 0:00:15.7]} 55. bxa6 {[%clk 0:00:14.9]} 55... Kg8 {[%clk
0:00:16.2]} 56. a7 {[%clk 0:00:15.4]} 56... Kh7 {[%clk 0:00:17.1]} 57. Kg2
{[%clk 0:00:15.6]} 1-0

[Event "Late-Titled-Tuesday-Blitz-July-09-2024"]
[Site "Chess.com"]
[Date "2024.07.09"]
[Round "3"]
[White "Mikhal867"]
[Black "santig8"]
[Result "1-0"]
[WhiteElo "2441"]
[BlackElo "2270"]
[TimeControl "180+1"]
[EndTime "14:29:14 PDT"]
[Termination "Mikhal867 won by resignation"]

1. c4 {[%clk 0:02:56.4]} 1... e5 {[%clk 0:02:59.4]} 2. Nc3 {[%clk 0:02:56.3]}
2... Nf6 {[%clk 0:02:58.4]} 3. g3 {[%clk 0:02:56.2]} 3... Bc5 {[%clk 0:02:57.1]}
4. Bg2 {[%clk 0:02:55.5]} 4... c6 {[%clk 0:02:57.2]} 5. e3 {[%clk 0:02:54.9]}
5... d5 {[%clk 0:02:57]} 6. d4 {[%clk 0:02:50.4]} 6... exd4 {[%clk 0:02:55.9]}
7. exd4 {[%clk 0:02:50.6]} 7... Bb4 {[%clk 0:02:56.1]} 8. Qb3 {[%clk 0:02:49.4]}
8... a5 {[%clk 0:02:48.2]} 9. c5 {[%clk 0:02:47.4]} 9... O-O {[%clk 0:02:44.9]}
10. Ne2 {[%clk 0:02:46.2]} 10... Bxc3+ {[%clk 0:02:41.7]} 11. bxc3 {[%clk
0:02:40.6]} 11... Re8 {[%clk 0:02:40.2]} 12. Qc2 {[%clk 0:02:34.9]} 12... Qe7
{[%clk 0:02:36.5]} 13. Bf3 {[%clk 0:02:14.8]} 13... Bg4 {[%clk 0:02:33.5]} 14.
Bxg4 {[%clk 0:02:12.6]} 14... Nxg4 {[%clk 0:02:34.4]} 15. h3 {[%clk 0:02:10.8]}
15... Nf6 {[%clk 0:02:28.5]} 16. Be3 {[%clk 0:02:06.8]} 16... Qe4 {[%clk
0:02:25.5]} 17. Qxe4 {[%clk 0:02:06]} 17... Nxe4 {[%clk 0:02:26.4]} 18. O-O
{[%clk 0:02:00.9]} 18... Nd7 {[%clk 0:02:24.1]} 19. Rab1 {[%clk 0:01:58.3]}
19... Rab8 {[%clk 0:02:23.2]} 20. Kg2 {[%clk 0:01:57.7]} 20... b6 {[%clk
0:02:22.6]} 21. Bf4 {[%clk 0:01:48.7]} 21... Rb7 {[%clk 0:02:13.7]} 22. f3
{[%clk 0:01:40]} 22... Nexc5 {[%clk 0:02:06.9]} 23. Nc1 {[%clk 0:01:27.5]} 23...
Ne6 {[%clk 0:02:04.2]} 24. Bd6 {[%clk 0:01:23.9]} 24... b5 {[%clk 0:02:03.4]}
25. Nd3 {[%clk 0:01:23]} 25... h6 {[%clk 0:01:51.9]} 26. g4 {[%clk 0:01:19.4]}
26... Ra8 {[%clk 0:01:49.3]} 27. f4 {[%clk 0:01:14.5]} 27... b4 {[%clk
0:01:45.5]} 28. f5 {[%clk 0:01:10.4]} 28... Ng5 {[%clk 0:01:43.9]} 29. cxb4
{[%clk 0:01:07.5]} 29... axb4 {[%clk 0:01:43.8]} 30. Nxb4 {[%clk 0:01:05.5]}
30... Ne4 {[%clk 0:01:42.8]} 31. Bf4 {[%clk 0:00:59.8]} 31... Ra4 {[%clk
0:01:24.7]} 32. Nxc6 {[%clk 0:00:57.8]} 32... Rxa2+ {[%clk 0:01:22.3]} 33. Kg1
{[%clk 0:00:57.9]} 33... Rxb1 {[%clk 0:01:16.9]} 34. Rxb1 {[%clk 0:00:57.3]}
34... Ndf6 {[%clk 0:01:16.3]} 35. Be5 {[%clk 0:00:30.8]} 35... Kh7 {[%clk
0:00:56.8]} 36. Nd8 {[%clk 0:00:26.8]} 36... Ng5 {[%clk 0:00:45.7]} 37. Bxf6
{[%clk 0:00:22.7]} 37... Nxh3+ {[%clk 0:00:45.1]} 38. Kf1 {[%clk 0:00:20.2]}
38... gxf6 {[%clk 0:00:43.8]} 39. Rb7 {[%clk 0:00:20.2]} 39... Ng5 {[%clk
0:00:36.6]} 40. Nxf7 {[%clk 0:00:19.6]} 40... Nxf7 {[%clk 0:00:29.7]} 41. Rxf7+
{[%clk 0:00:19.4]} 41... Kg8 {[%clk 0:00:29.6]} 42. Rxf6 {[%clk 0:00:19.9]}
42... Kg7 {[%clk 0:00:29.8]} 43. Rg6+ {[%clk 0:00:20.1]} 43... Kh7 {[%clk
0:00:30.1]} 44. Rd6 {[%clk 0:00:19.5]} 44... Ra3 {[%clk 0:00:28.2]} 45. Kf2
{[%clk 0:00:16.7]} 45... Ra5 {[%clk 0:00:25.6]} 46. Kf3 {[%clk 0:00:16]} 46...
Kg7 {[%clk 0:00:25.8]} 47. Kf4 {[%clk 0:00:15.9]} 47... Rb5 {[%clk 0:00:24.1]}
48. Ke5 {[%clk 0:00:15.9]} 48... Rb1 {[%clk 0:00:22.1]} 49. Rd7+ {[%clk
0:00:16.1]} 49... Kf8 {[%clk 0:00:21.5]} 50. Kf6 {[%clk 0:00:15.7]} 50... Ke8
{[%clk 0:00:20.5]} 51. Rxd5 {[%clk 0:00:15.8]} 51... Rg1 {[%clk 0:00:18.5]} 52.
Re5+ {[%clk 0:00:15.8]} 52... Kd7 {[%clk 0:00:18.8]} 53. Re4 {[%clk 0:00:16.1]}
53... Kd6 {[%clk 0:00:19]} 54. Kg6 {[%clk 0:00:16.3]} 54... Rh1 {[%clk
0:00:18.6]} 55. f6 {[%clk 0:00:16]} 55... Rf1 {[%clk 0:00:15.7]} 56. Re5 {[%clk
0:00:13.8]} 56... Rf4 {[%clk 0:00:14]} 57. Rf5 {[%clk 0:00:11.6]} 57... Rxg4+
{[%clk 0:00:13.2]} 58. Kxh6 {[%clk 0:00:11.9]} 58... Ke6 {[%clk 0:00:13]} 59. f7
{[%clk 0:00:11.8]} 59... Rh4+ {[%clk 0:00:10.9]} 60. Kg5 {[%clk 0:00:11.1]}
60... Rh8 {[%clk 0:00:09]} 61. f8=Q {[%clk 0:00:09.9]} 1-0

[Event "Late-Titled-Tuesday-Blitz-July-09-2024"]
[Site "Chess.com"]
[Date "2024.07.09"]
[Round "3"]
[White "pinelone"]
[Black "GMRafpig"]
[Result "0-1"]
[WhiteElo "2384"]
[BlackElo "2776"]
[TimeControl "180+1"]
[EndTime "14:29:20 PDT"]
[Termination "GMRafpig won on time"]

1. Nf3 {[%clk 0:03:00.9]} 1... Nf6 {[%clk 0:02:58.7]} 2. c4 {[%clk 0:03:00.3]}
2... e6 {[%clk 0:02:58.5]} 3. b3 {[%clk 0:03:00.3]} 3... d5 {[%clk 0:02:58.1]}
4. Bb2 {[%clk 0:03:00.3]} 4... Be7 {[%clk 0:02:57.7]} 5. g3 {[%clk 0:03:00.5]}
5... O-O {[%clk 0:02:53.8]} 6. Bg2 {[%clk 0:03:00.5]} 6... a5 {[%clk 0:02:53]}
7. Nc3 {[%clk 0:02:59.7]} 7... c6 {[%clk 0:02:48.2]} 8. d4 {[%clk 0:02:36.9]}
8... b6 {[%clk 0:02:42.6]} 9. Ne5 {[%clk 0:02:23.8]} 9... Nfd7 {[%clk 0:02:25]}
10. Nf3 {[%clk 0:02:04.4]} 10... Ba6 {[%clk 0:02:22]} 11. Nd2 {[%clk 0:02:01.2]}
11... b5 {[%clk 0:02:15.3]} 12. O-O {[%clk 0:01:39.9]} 12... bxc4 {[%clk
0:01:54.3]} 13. bxc4 {[%clk 0:01:39.2]} 13... dxc4 {[%clk 0:01:55]} 14. Qc2
{[%clk 0:01:30.7]} 14... Nb6 {[%clk 0:01:43.3]} 15. Nce4 {[%clk 0:01:24.5]}
15... N8d7 {[%clk 0:01:41.5]} 16. Rfd1 {[%clk 0:01:10.7]} 16... Rc8 {[%clk
0:01:36.2]} 17. Nc5 {[%clk 0:01:02.8]} 17... Nxc5 {[%clk 0:00:58.5]} 18. dxc5
{[%clk 0:01:02.1]} 18... Nd7 {[%clk 0:00:59.1]} 19. Nxc4 {[%clk 0:00:38.8]}
19... Bxc4 {[%clk 0:00:56.5]} 20. Qxc4 {[%clk 0:00:38.9]} 20... Qc7 {[%clk
0:00:54.7]} 21. Bd4 {[%clk 0:00:24.2]} 21... Rb8 {[%clk 0:00:44.5]} 22. Rab1
{[%clk 0:00:23.7]} 22... h6 {[%clk 0:00:33.2]} 23. Rb3 {[%clk 0:00:22.7]} 23...
Rxb3 {[%clk 0:00:32.1]} 24. axb3 {[%clk 0:00:22.7]} 24... Rb8 {[%clk 0:00:31.1]}
25. Be3 {[%clk 0:00:19.2]} 25... Rb4 {[%clk 0:00:29.5]} 26. Qd3 {[%clk
0:00:19.3]} 26... Nxc5 {[%clk 0:00:25.7]} 27. Bxc5 {[%clk 0:00:18.9]} 27... Bxc5
{[%clk 0:00:26.3]} 28. Qd8+ {[%clk 0:00:18.8]} 28... Qxd8 {[%clk 0:00:26.6]} 29.
Rxd8+ {[%clk 0:00:18.8]} 29... Kh7 {[%clk 0:00:27.3]} 30. Rd3 {[%clk 0:00:17.2]}
30... Rb6 {[%clk 0:00:24.6]} 31. Rc3 {[%clk 0:00:15]} 31... Bd4 {[%clk
0:00:24.8]} 32. Rd3 {[%clk 0:00:12.3]} 32... Bf6 {[%clk 0:00:23.8]} 33. f4
{[%clk 0:00:09.8]} 33... c5 {[%clk 0:00:23.8]} 34. Kf2 {[%clk 0:00:09.2]} 34...
Rb4 {[%clk 0:00:19.1]} 35. Bf3 {[%clk 0:00:07]} 35... c4 {[%clk 0:00:17.9]} 36.
bxc4 {[%clk 0:00:06.8]} 36... Rxc4 {[%clk 0:00:18.6]} 37. Ra3 {[%clk 0:00:06.4]}
37... a4 {[%clk 0:00:18.3]} 38. Ra2 {[%clk 0:00:03]} 38... Be7 {[%clk
0:00:15.9]} 39. e3 {[%clk 0:00:03.1]} 39... a3 {[%clk 0:00:16.2]} 40. Be2 {[%clk
0:00:03.4]} 40... Rc1 {[%clk 0:00:15.7]} 41. Bd3+ {[%clk 0:00:03.4]} 41... g6
{[%clk 0:00:14.4]} 42. Kf3 {[%clk 0:00:03]} 42... Kg7 {[%clk 0:00:14.4]} 43. h4
{[%clk 0:00:02.7]} 43... Rc3 {[%clk 0:00:13.6]} 44. Be4 {[%clk 0:00:02.9]} 44...
Bc5 {[%clk 0:00:13.7]} 45. Re2 {[%clk 0:00:01.1]} 45... a2 {[%clk 0:00:13.4]}
46. Rxa2 {[%clk 0:00:01]} 46... Rxe3+ {[%clk 0:00:13.7]} 47. Kg2 {[%clk
0:00:01.2]} 47... Rxe4 {[%clk 0:00:13.9]} 48. Rc2 {[%clk 0:00:01.2]} 48... Bd4
{[%clk 0:00:14.2]} 49. Rc4 {[%clk 0:00:01.2]} 49... f5 {[%clk 0:00:11.5]} 50.
Kf3 {[%clk 0:00:01.5]} 50... Re3+ {[%clk 0:00:11.4]} 51. Kg2 {[%clk 0:00:02]}
51... Rd3 {[%clk 0:00:11.6]} 52. Rc6 {[%clk 0:00:02.4]} 52... Kf6 {[%clk
0:00:11.6]} 53. Rc7 {[%clk 0:00:03]} 53... Rd2+ {[%clk 0:00:11.6]} 54. Kh3
{[%clk 0:00:02.5]} 54... Bg1 {[%clk 0:00:10.4]} 55. g4 {[%clk 0:00:01.3]} 55...
fxg4+ {[%clk 0:00:09.7]} 56. Kxg4 {[%clk 0:00:01.2]} 56... h5+ {[%clk
0:00:07.4]} 57. Kf3 {[%clk 0:00:01.3]} 57... Rh2 {[%clk 0:00:07]} 58. Rc8 {[%clk
0:00:01]} 58... Rxh4 {[%clk 0:00:06.4]} 0-1

[Event "Late-Titled-Tuesday-Blitz-July-09-2024"]
[Site "Chess.com"]
[Date "2024.07.09"]
[Round "3"]
[White "cristiano78"]
[Black "purpurice"]
[Result "1/2-1/2"]
[WhiteElo "2260"]
[BlackElo "2539"]
[TimeControl "180+1"]
[EndTime "14:29:21 PDT"]
[Termination "Game drawn by repetition"]

1. d4 {[%clk 0:03:00]} 1... Nf6 {[%clk 0:02:59.9]} 2. c4 {[%clk 0:02:59.7]} 2...
c5 {[%clk 0:03:00.2]} 3. d5 {[%clk 0:02:59.1]} 3... e6 {[%clk 0:03:00.9]} 4. Nc3
{[%clk 0:02:58.7]} 4... exd5 {[%clk 0:03:01.5]} 5. cxd5 {[%clk 0:02:58.7]} 5...
d6 {[%clk 0:03:02.2]} 6. h3 {[%clk 0:02:58.2]} 6... g6 {[%clk 0:03:02.4]} 7. Nf3
{[%clk 0:02:58.3]} 7... Bg7 {[%clk 0:03:02.9]} 8. e4 {[%clk 0:02:58.1]} 8... O-O
{[%clk 0:03:03.1]} 9. Bd3 {[%clk 0:02:58.1]} 9... a6 {[%clk 0:03:03.3]} 10. a4
{[%clk 0:02:57.9]} 10... Re8 {[%clk 0:03:03.8]} 11. O-O {[%clk 0:02:57.5]} 11...
Nbd7 {[%clk 0:03:04.2]} 12. Re1 {[%clk 0:02:57.5]} 12... Qc7 {[%clk 0:02:59.3]}
13. Bf4 {[%clk 0:02:55.6]} 13... Nh5 {[%clk 0:02:50.1]} 14. Bh2 {[%clk
0:02:55.1]} 14... Ne5 {[%clk 0:02:49.8]} 15. Nxe5 {[%clk 0:02:52.1]} 15... Bxe5
{[%clk 0:02:50]} 16. Be2 {[%clk 0:02:48]} 16... Nf4 {[%clk 0:02:45.6]} 17. Bf1
{[%clk 0:02:29.6]} 17... Bd7 {[%clk 0:02:37.8]} 18. Qd2 {[%clk 0:02:29.3]} 18...
Nh5 {[%clk 0:02:26.6]} 19. Be2 {[%clk 0:02:15.7]} 19... Nf6 {[%clk 0:02:19.8]}
20. Bf3 {[%clk 0:02:01.8]} 20... Bxh2+ {[%clk 0:02:10.7]} 21. Kxh2 {[%clk
0:02:01.8]} 21... b5 {[%clk 0:02:09.8]} 22. axb5 {[%clk 0:02:01.8]} 22... axb5
{[%clk 0:02:10.7]} 23. Rxa8 {[%clk 0:01:58.7]} 23... Rxa8 {[%clk 0:02:11.6]} 24.
e5 {[%clk 0:01:55.8]} 24... Ne8 {[%clk 0:01:58.2]} 25. e6 {[%clk 0:01:50.3]}
25... fxe6 {[%clk 0:01:58.7]} 26. dxe6 {[%clk 0:01:50.4]} 26... Bc6 {[%clk
0:01:57.5]} 27. Nd5 {[%clk 0:01:48.6]} 27... Qg7 {[%clk 0:01:45.2]} 28. Qf4
{[%clk 0:01:41]} 28... Ra4 {[%clk 0:01:32.8]} 29. b4 {[%clk 0:01:28.6]} 29...
Bxd5 {[%clk 0:01:16]} 30. Bxd5 {[%clk 0:01:26]} 30... Kh8 {[%clk 0:01:03.3]} 31.
e7 {[%clk 0:01:25.1]} 31... Qf6 {[%clk 0:00:41]} 32. Qxf6+ {[%clk 0:01:19.5]}
32... Nxf6 {[%clk 0:00:41.9]} 33. e8=Q+ {[%clk 0:01:18.6]} 33... Nxe8 {[%clk
0:00:42.6]} 34. Rxe8+ {[%clk 0:01:18.3]} 34... Kg7 {[%clk 0:00:43.5]} 35. bxc5
{[%clk 0:01:18.6]} 35... dxc5 {[%clk 0:00:43.1]} 36. Bc6 {[%clk 0:01:18]} 36...
Ra5 {[%clk 0:00:40.1]} 37. Re5 {[%clk 0:01:12.8]} 37... b4 {[%clk 0:00:38.6]}
38. Bd5 {[%clk 0:01:12.7]} 38... Kf6 {[%clk 0:00:37.4]} 39. f4 {[%clk
0:01:11.8]} 39... Ra3 {[%clk 0:00:31.4]} 40. Bc4 {[%clk 0:01:03.7]} 40... Rc3
{[%clk 0:00:23.4]} 41. Rxc5 {[%clk 0:00:57.1]} 41... b3 {[%clk 0:00:23.7]} 42.
Rc6+ {[%clk 0:00:55.5]} 42... Ke7 {[%clk 0:00:17.7]} 43. Re6+ {[%clk 0:00:43.1]}
43... Kd7 {[%clk 0:00:16.2]} 44. Bxb3 {[%clk 0:00:42.2]} 44... Rxb3 {[%clk
0:00:16.6]} 45. Re5 {[%clk 0:00:42.2]} 45... Rc3 {[%clk 0:00:15]} 46. g4 {[%clk
0:00:41.5]} 46... Kd6 {[%clk 0:00:13.9]} 47. Re8 {[%clk 0:00:41]} 47... Rc4
{[%clk 0:00:13.5]} 48. Kg3 {[%clk 0:00:41]} 48... Rc3+ {[%clk 0:00:13]} 49. Kh4
{[%clk 0:00:40.8]} 49... Rf3 {[%clk 0:00:13]} 50. Rf8 {[%clk 0:00:38.3]} 50...
Ke7 {[%clk 0:00:13.2]} 51. Rh8 {[%clk 0:00:37.8]} 51... Rxf4 {[%clk 0:00:12.9]}
52. Rxh7+ {[%clk 0:00:37.7]} 52... Kf6 {[%clk 0:00:13.5]} 53. Kg3 {[%clk
0:00:36.4]} 53... g5 {[%clk 0:00:12.9]} 54. Rh6+ {[%clk 0:00:34.5]} 54... Kg7
{[%clk 0:00:12.6]} 55. Rh5 {[%clk 0:00:32.9]} 55... Kf6 {[%clk 0:00:07.1]} 56.
Rh6+ {[%clk 0:00:32.9]} 56... Kf7 {[%clk 0:00:06.8]} 57. Rh5 {[%clk 0:00:29.2]}
57... Kf6 {[%clk 0:00:07]} 58. Rh6+ {[%clk 0:00:10.2]} 1/2-1/2

[Event "Late-Titled-Tuesday-Blitz-July-09-2024"]
[Site "Chess.com"]
[Date "2024.07.09"]
[Round "3"]
[White "Boorchess"]
[Black "IngOscarArdila"]
[Result "1/2-1/2"]
[WhiteElo "2535"]
[BlackElo "2303"]
[TimeControl "180+1"]
[EndTime "14:29:23 PDT"]
[Termination "Game drawn - insufficient material"]

1. d4 {[%clk 0:03:00.9]} 1... Nf6 {[%clk 0:03:00]} 2. c4 {[%clk 0:03:00.8]} 2...
e6 {[%clk 0:03:00.2]} 3. Nc3 {[%clk 0:03:00.2]} 3... c5 {[%clk 0:02:59.9]} 4. d5
{[%clk 0:02:59.5]} 4... exd5 {[%clk 0:02:59.7]} 5. cxd5 {[%clk 0:02:59.6]} 5...
d6 {[%clk 0:02:59.4]} 6. e4 {[%clk 0:02:59.7]} 6... g6 {[%clk 0:02:58.2]} 7. f3
{[%clk 0:02:59]} 7... Bg7 {[%clk 0:02:58]} 8. Be3 {[%clk 0:02:58.7]} 8... O-O
{[%clk 0:02:58]} 9. Qd2 {[%clk 0:02:58.6]} 9... a6 {[%clk 0:02:57.5]} 10. a4
{[%clk 0:02:58.1]} 10... Nbd7 {[%clk 0:02:57.4]} 11. Nh3 {[%clk 0:02:58]} 11...
Ne5 {[%clk 0:02:57.1]} 12. Nf2 {[%clk 0:02:58]} 12... Rb8 {[%clk 0:02:47.3]} 13.
Be2 {[%clk 0:02:54.8]} 13... h5 {[%clk 0:02:43.8]} 14. O-O {[%clk 0:02:51.8]}
14... Bd7 {[%clk 0:02:40.6]} 15. h3 {[%clk 0:02:34]} 15... b5 {[%clk 0:02:22.3]}
16. axb5 {[%clk 0:02:33.7]} 16... axb5 {[%clk 0:02:23.2]} 17. f4 {[%clk
0:02:33.7]} 17... Nc4 {[%clk 0:02:22.6]} 18. Bxc4 {[%clk 0:02:33.8]} 18... bxc4
{[%clk 0:02:23.2]} 19. Ra2 {[%clk 0:02:19.5]} 19... Re8 {[%clk 0:02:22.4]} 20.
Qe2 {[%clk 0:02:14.8]} 20... Bb5 {[%clk 0:02:14]} 21. Qf3 {[%clk 0:02:11.2]}
21... Qe7 {[%clk 0:02:08.7]} 22. Re1 {[%clk 0:02:09.3]} 22... Qc7 {[%clk
0:02:00]} 23. g4 {[%clk 0:01:59.9]} 23... hxg4 {[%clk 0:01:59.2]} 24. hxg4
{[%clk 0:02:00]} 24... Bd7 {[%clk 0:01:59.7]} 25. Kg2 {[%clk 0:01:45.3]} 25...
Rb3 {[%clk 0:01:57.4]} 26. Re2 {[%clk 0:01:36.2]} 26... Reb8 {[%clk 0:01:56.9]}
27. Kg3 {[%clk 0:01:29.5]} 27... Qc8 {[%clk 0:01:47]} 28. e5 {[%clk 0:01:18.1]}
28... dxe5 {[%clk 0:01:39.3]} 29. fxe5 {[%clk 0:01:17.9]} 29... Nh7 {[%clk
0:01:38.6]} 30. Bf4 {[%clk 0:01:15.5]} 30... g5 {[%clk 0:01:36.3]} 31. Bd2
{[%clk 0:01:12.5]} 31... Rxb2 {[%clk 0:01:34.8]} 32. Rxb2 {[%clk 0:01:12.2]}
32... Rxb2 {[%clk 0:01:35.6]} 33. Qe4 {[%clk 0:01:07.3]} 33... Qb8 {[%clk
0:01:27.7]} 34. Kg2 {[%clk 0:01:03.6]} 34... Rxd2 {[%clk 0:01:09.7]} 35. Rxd2
{[%clk 0:01:02.9]} 35... Bxe5 {[%clk 0:01:10.2]} 36. Qf3 {[%clk 0:00:58]} 36...
Bd4 {[%clk 0:01:05.2]} 37. Nce4 {[%clk 0:00:56.3]} 37... Qf4 {[%clk 0:00:56.8]}
38. Qxf4 {[%clk 0:00:55.5]} 38... gxf4 {[%clk 0:00:57]} 39. Rc2 {[%clk
0:00:54.1]} 39... f5 {[%clk 0:00:52.6]} 40. gxf5 {[%clk 0:00:49.7]} 40... Bxf5
{[%clk 0:00:52.7]} 41. Rxc4 {[%clk 0:00:50]} 41... Kg7 {[%clk 0:00:44.9]} 42.
Kf3 {[%clk 0:00:50.3]} 42... Nf6 {[%clk 0:00:34.1]} 43. Nd6 {[%clk 0:00:43.5]}
43... Bb1 {[%clk 0:00:28]} 44. Ng4 {[%clk 0:00:39]} 44... Nxd5 {[%clk
0:00:26.3]} 45. Ra4 {[%clk 0:00:30.6]} 45... Bc2 {[%clk 0:00:19.1]} 46. Ra7+
{[%clk 0:00:27.5]} 46... Kg6 {[%clk 0:00:19.2]} 47. Ke2 {[%clk 0:00:22.3]} 47...
Bf5 {[%clk 0:00:17.8]} 48. Nf2 {[%clk 0:00:20.8]} 48... Nc3+ {[%clk 0:00:13.1]}
49. Kf1 {[%clk 0:00:19.7]} 49... Be3 {[%clk 0:00:07.4]} 50. Ra6 {[%clk
0:00:18.9]} 50... Bxf2 {[%clk 0:00:06.6]} 51. Kxf2 {[%clk 0:00:18.5]} 51... Kg5
{[%clk 0:00:06.2]} 52. Nxf5 {[%clk 0:00:18.3]} 52... Kxf5 {[%clk 0:00:06.2]} 53.
Kf3 {[%clk 0:00:18.4]} 53... Ke5 {[%clk 0:00:05.6]} 54. Rh6 {[%clk 0:00:18.2]}
54... Nd5 {[%clk 0:00:04.8]} 55. Rh8 {[%clk 0:00:17.1]} 55... Kd4 {[%clk
0:00:04.8]} 56. Rh1 {[%clk 0:00:15.2]} 56... c4 {[%clk 0:00:04.6]} 57. Rd1+
{[%clk 0:00:15.2]} 57... Ke5 {[%clk 0:00:04.7]} 58. Re1+ {[%clk 0:00:15]} 58...
Kd4 {[%clk 0:00:04.8]} 59. Rd1+ {[%clk 0:00:15.1]} 59... Kc5 {[%clk 0:00:05.1]}
60. Ra1 {[%clk 0:00:14]} 60... c3 {[%clk 0:00:05.2]} 61. Ke4 {[%clk 0:00:14.4]}
61... Kc4 {[%clk 0:00:04.1]} 62. Ra4+ {[%clk 0:00:14.3]} 62... Nb4 {[%clk
0:00:04.3]} 63. Ra1 {[%clk 0:00:09.8]} 63... f3 {[%clk 0:00:02.5]} 64. Kxf3
{[%clk 0:00:09]} 64... Kb3 {[%clk 0:00:03.4]} 65. Rc1 {[%clk 0:00:08.6]} 65...
Kb2 {[%clk 0:00:03.6]} 66. Rxc3 {[%clk 0:00:09]} 66... Kxc3 {[%clk 0:00:03.5]}
1/2-1/2